Cogmind - Beta 11 @@@ ROGUE MODE // 2022.04.11 @ 20:05:26 Player: Red Box Result: Self-destructed Performance ------------- Evolutions (5) 2500 Regions Visited (19) 3800 Robots Destroyed (225) 1125 Value Destroyed (11105) 11105 Prototype IDs (51) 1020 Alien Tech Used (0) 0 Bonus (5866) 5866 TOTAL SCORE: 25416 Bonus ------- High Alert Combat Kills 533 Follower Combat Kills 2079 Entered Garrisons 1000 Used RIF Installer 2500 Aligned with FarCom 300 Friendly Fire -546 Cogmind --------- Core Integrity 695/1000 Matter 141/300 Energy 100/100 System Corruption 25% Temperature Cool (0) Movement Core (1550) Ox30 Location -5/Factory Parts ------- > --- POWER (1) -------- (None) > --- PROPULSION (2) --- (None) > --- UTILITY (12) ----- Power Amplifier Huge Storage Unit Relay Coupler [Grunt] (5) Relay Coupler [Sentry] (16) > --- WEAPON (2) ------- Advanced KE Penetrator Mini Assault Cannon > --- INVENTORY (25) --- Wheel Improved Coolant Injector Huge Storage Unit Experimental Propulsion Shielding Medium Reflective Plating Authchip [Propulsion] Relay Coupler [NC] (33) Relay Coupler [Sentry] (26) System Guard Trap Reconfigurator Cooled Pulse Rifle Heavy Gatling Laser Long-range Proton Cannon Enhanced Gauss Cannon Guided EMP Blaster Long-range Missile Launcher Improved Remote Datajack Power Maul Peak State ------------ > --- POWER ------------ Improved Deuterium Engine > --- PROPULSION ------- Armored Huge Wheel > --- UTILITY ---------- Huge Storage Unit Advanced Targeting Computer Damper Plating Improved System Shield Relay Coupler [NC] Relay Coupler [Swarmer] Relay Coupler [Grunt] Relay Coupler [Sentry] Trap Reconfigurator > --- WEAPON ----------- Magnetic Acceleration Cannon Remote Datajack > --- INVENTORY -------- Enhanced Nuclear Core Wheel Power Amplifier Improved Coolant Injector Huge Storage Unit Compact Matter Pod Kinecellerator Transmission Jammer Experimental Propulsion Shielding Medium Reflective Plating Force Field Remote Shield Authchip [Propulsion] Relay Coupler [NC] Relay Coupler [Sentry] Relay Coupler [Sentry] System Guard Cooled Pulse Rifle Long-range Proton Cannon Advanced KE Penetrator Mini Assault Cannon Guided EMP Blaster Long-range Missile Launcher Power Maul [Rating: 85] Favorites ----------- Power Cooled Ion Engine Engine Cooled Ion Engine Power Core Enhanced Nuclear Core Propulsion Armored Huge Wheel Leg Aluminum Leg Wheel Armored Huge Wheel Utility Huge Storage Unit Device Thermal Shield Storage Huge Storage Unit Processor Advanced Targeting Computer Hackware System Shield Protection Damper Plating Weapon Remote Datajack Energy Gun Cooled Pulse Rifle Energy Cannon EM Pulse Cannon Ballistic Gun Coil Gun Ballistic Cannon Mini Assault Cannon Launcher Guided EMP Blaster Special Weapon Remote Datajack Impact Weapon Powered Hammer Slashing Weapon Great Axe Special Melee Weapon Datajack Build | -11 -10 -10 -9 -9 -9 -8 -8 -8 -8 -8 -7 -7 -7 -7 -7 -7 -6 -6 -5 ------- Run | Scr Mat Min Mat Min Exi Min Mat Gar Mat Gar Fac Was Fac Gar Fac Gar Fac Gar Fac Slots Evolved 10 | . . . 2 . . . 2 . . . 2 . . . . . 2 . 2 Power . | . . . . . . . . . . . . . . . . . . . . Propulsion . | . . . . . . . . . . . . . . . . . . . . Utility 10 | . . . 2 . . . 2 . . . 2 . . . . . 2 . 2 Weapon . | . . . . . . . . . . . . . . . . . . . . Parts Attached 465 | 7 20 7 27 6 4 2 30 32 35 13 31 9 15 67 40 16 42 30 32 Power 16 | 1 1 . 4 . . . . 1 . . 1 . 2 1 1 . 3 . 1 Engine 14 | 1 1 . 4 . . . . 1 . . 1 . 2 1 1 . 2 . . Core 2 | . . . . . . . . . . . . . . . . . 1 . 1 Reactor . | . . . . . . . . . . . . . . . . . . . . Propulsion 23 | 2 4 . 3 2 . 2 1 2 1 2 2 . . 1 1 . . . . Treads . | . . . . . . . . . . . . . . . . . . . . Leg 2 | 2 . . . . . . . . . . . . . . . . . . . Wheel 21 | . 4 . 3 2 . 2 1 2 1 2 2 . . 1 1 . . . . Hover . | . . . . . . . . . . . . . . . . . . . . Flight . | . . . . . . . . . . . . . . . . . . . . Utility 193 | 2 3 1 6 2 2 . 17 15 15 5 11 5 3 25 20 6 24 14 17 Device 118 | 1 1 . 1 1 . . 11 6 9 3 6 3 1 19 13 4 18 9 12 Storage 9 | 1 1 1 . . 2 . 1 . . 1 . . . . . . 1 . 1 Processor 8 | . . . 1 . . . . 2 . . 2 1 . . 1 . 1 . . Hackware 24 | . . . . . . . 2 . 2 . 2 . 2 4 4 1 2 3 2 Protection 34 | . 1 . 4 1 . . 3 7 4 1 1 1 . 2 2 1 2 2 2 Artifact . | . . . . . . . . . . . . . . . . . . . . Weapon 233 | 2 12 6 14 2 2 . 12 14 19 6 17 4 10 40 18 10 15 16 14 Energy Gun 65 | . 3 3 8 2 . . 7 2 10 3 1 . 3 10 4 3 . 4 2 Energy Cannon 24 | . . . 5 . 2 . 3 . . . 2 . . 8 2 . 1 1 . Ballistic Gun 29 | 2 4 . . . . . . 7 5 . 3 1 . 1 3 2 . . 1 Ballistic Cannon 38 | . . . . . . . . 1 . . 6 . 4 10 1 1 7 1 7 Launcher 13 | . . 2 . . . . 1 1 2 1 1 1 . 1 . . 1 2 . Special Weapon 27 | . . . . . . . . . . . . . 1 7 6 3 4 3 3 Impact Weapon 18 | . 5 1 1 . . . 1 . . . . . . . 1 1 2 5 1 Slashing Weapon 12 | . . . . . . . . 2 1 2 . 2 1 3 1 . . . . Piercing Weapon . | . . . . . . . . . . . . . . . . . . . . Special Melee Weapon 7 | . . . . . . . . 1 1 . 4 . 1 . . . . . . Unidentified Prototypes 18 | . . . 2 . . . 3 . 3 . 1 2 3 . 2 . 1 . 1 Corrupted Parts 1 | . . . . . . . . . . 1 . . . . . . . . . System Corruption 3 | . . . . . . . . . . 3 . . . . . . . . . Parts Lost 55 | . 1 . 5 . . . 2 5 3 1 5 4 1 6 1 2 4 2 13 Power 6 | . . . . . . . . 1 . . 1 1 1 1 . . . . 1 Propulsion 8 | . . . 2 . . . . 1 2 . 1 . . 1 . . . . 1 Utility 36 | . 1 . 2 . . . 2 3 . 1 3 2 . 3 1 2 4 2 10 Weapon 5 | . . . 1 . . . . . 1 . . 1 . 1 . . . . 1 Highest Loss Streak 13 | . 1 . 2 . . . 1 3 1 1 4 2 1 2 1 2 4 2 13 To Critical Strikes . | . . . . . . . . . . . . . . . . . . . . Average Slot Usage (%) 89 | . 97 100 98 100 100 100 98 98 90 90 96 77 88 89 91 91 76 71 80 Engine 7 | . 14 14 11 11 11 11 9 8 9 9 7 . 4 6 7 7 6 6 4 Wheel 11 | . 28 28 20 22 22 22 18 17 9 10 12 7 7 7 7 7 6 6 4 Device 14 | . 6 14 11 11 11 11 27 20 19 16 23 14 24 15 16 10 11 11 9 Storage 8 | . 14 14 11 11 11 11 9 9 9 9 7 7 7 7 7 7 6 6 5 Processor 8 | . . . 10 11 11 11 2 12 18 10 8 17 15 7 13 12 6 6 4 Hackware 12 | . . . . . . . 3 . 4 9 12 11 13 24 16 24 16 13 28 Protection 6 | . 4 . 10 11 11 11 10 11 2 7 7 1 . 3 5 3 7 6 6 Energy Gun 6 | . 5 17 19 9 22 . 8 . 9 16 . . . 4 2 4 . 3 . Energy Cannon 2 | . . . 2 12 . 22 8 4 . . . . . 4 1 . 1 . . Ballistic Gun 2 | . 18 . . . . . . 7 8 . 4 . . . 2 . . . . Ballistic Cannon 2 | . . . . . . . . 1 . . 8 7 13 2 . . 6 . 7 Special Weapon 1 | . . . . . . . . . . . . . . . 3 5 3 4 2 Naked Turns . | . . . . . . . . . . . . . . . . . . . . Heaviest Build 157 | 11 34 94 104 105 109 109 127 127 113 110 114 104 104 112 111 114 156 157 152 Greatest Support 32 | 20 32 32 32 32 28 28 24 24 28 28 28 28 28 28 28 28 28 28 28 Greatest Overweight (x) 9 | . 1 2 6 3 3 4 5 9 8 4 4 3 3 3 3 4 5 5 5 Average Overweight (x) 3 | . . 1 3 3 3 3 4 4 3 3 3 3 3 3 3 3 4 4 4 Largest Inventory Capacity 25 | 8 15 25 25 25 25 25 25 25 25 25 25 25 25 25 25 25 25 25 25 Average Capacity 24 | 7 14 24 25 25 25 25 25 25 25 25 25 25 25 25 25 25 25 25 25 Most Carried 25 | 8 15 25 25 25 25 25 25 25 25 25 25 25 25 25 25 25 25 25 25 Average Carried 24 | 5 13 20 24 24 24 24 24 24 24 24 24 23 24 24 24 24 24 24 24 Final Capacity 25 | 8 15 25 25 25 25 25 25 25 25 25 25 25 25 25 25 25 25 25 25 Final Carried 25 | 8 15 25 25 25 25 25 25 25 25 25 21 25 24 25 24 25 25 25 19 Class Distribution -------------------- 61% | Bothacker-Mutant 28% | Mutant 5% | Botlord-Mutant 4% | Commander-Mutant Dominant Class ---------------- Mutant | -10/Materials Mutant | -10/Mines Mutant | -9/Materials Mutant | -9/Mines Mutant | -9/Exiles Mutant | -8/Mines Mutant | -8/Materials Commander-Mutant | -8/Garrison Bothacker-Mutant | -8/Materials Bothacker-Mutant | -8/Garrison Bothacker-Mutant | -7/Factory Bothacker-Mutant | -7/Waste Bothacker-Mutant | -7/Factory Bothacker-Mutant | -7/Garrison Bothacker-Mutant | -7/Factory Bothacker-Mutant | -7/Garrison Bothacker-Mutant | -6/Factory Bothacker-Mutant | -6/Garrison Botlord-Mutant | -5/Factory Resources | -11 -10 -10 -9 -9 -9 -8 -8 -8 -8 -8 -7 -7 -7 -7 -7 -7 -6 -6 -5 ----------- Run | Scr Mat Min Mat Min Exi Min Mat Gar Mat Gar Fac Was Fac Gar Fac Gar Fac Gar Fac Matter Collected 8719 | 287 620 124 230 60 . 90 253 735 526 120 591 140 370 1233 765 389 421 1092 673 Remotely . | . . . . . . . . . . . . . . . . . . . . Salvage Created 8169 | 40 318 32 963 49 . 157 613 705 761 329 514 416 81 841 259 323 663 608 497 Parts 429 | 6 21 1 66 2 . 5 40 46 43 11 34 1 11 39 14 11 29 27 22 Haulers Intercepted 11 | . 2 . 5 . . . 2 . 2 . . . . . . . . . . Recyclers Shooed 4 | . 1 . 2 . . . . . . . 1 . . . . . . . . Parts Field Recycled . | . . . . . . . . . . . . . . . . . . . . Retrieved Matter . | . . . . . . . . . . . . . . . . . . . . Parts Self-Destructed . | . . . . . . . . . . . . . . . . . . . . Prevented . | . . . . . . . . . . . . . . . . . . . . Kills | -11 -10 -10 -9 -9 -9 -8 -8 -8 -8 -8 -7 -7 -7 -7 -7 -7 -6 -6 -5 ------- Run | Scr Mat Min Mat Min Exi Min Mat Gar Mat Gar Fac Was Fac Gar Fac Gar Fac Gar Fac Combat Hostiles Destroyed 189 | . 8 4 25 1 . 5 17 24 11 4 14 2 2 19 5 9 11 13 15 Melee 9 | . . 1 . . . . 1 . . 1 . . . 1 . 2 2 1 . Guns 77 | . 8 . 22 . . . 12 7 8 2 . . . 11 2 4 . . 1 Cannons 63 | . . . 3 1 . 3 . 13 . . 11 1 2 6 2 1 5 1 14 AOE 25 | . . 2 . . . 2 3 3 1 . 3 1 . . . . 3 7 . Classes Destroyed 20 | 1 5 1 2 . . 1 2 1 . . 2 1 . . 1 . 1 1 1 Worker 3 | . . . 1 . . . . . . . . . 1 . . . 1 . . Builder 3 | . 1 . 1 . . . . . . . 1 . . . . . . . . Tunneler 2 | 2 . . . . . . . . . . . . . . . . . . . Hauler 11 | . 2 . 5 . . . 2 . 2 . . . . . . . . . . Recycler 1 | . . . . . . . . . . . . . . . 1 . . . . Mechanic 1 | . . . . . . . . . . . . . . . . . 1 . . Operator 1 | . . . . . . . 1 . . . . . . . . . . . . Watcher 15 | . 2 . 2 . . . 3 1 3 . . . . . . . 3 . 1 Swarmer 60 | . 6 1 10 . . 3 7 9 1 . . . . 8 1 4 . 7 3 Cutter 3 | . . . . . . . . 2 . . . . . . . . . . 1 Grunt 57 | . 2 . 9 1 . 1 7 8 6 4 2 . . 1 1 3 5 5 2 Brawler 5 | . . . . . . 1 . 1 . . . . . 2 1 . . . . Duelist 4 | . . . . . . . . . . . 1 . . 2 1 . . . . Sentry 22 | . . . 6 . . . 2 4 3 . 1 . . 4 . . 2 . . Specialist 2 | . . . . . . . . . . . . . . . . . . . 2 Hunter 12 | . . . . . . . 1 . 1 . 4 . . 1 . 2 3 . . Programmer 20 | . . . . . . . . . . . 6 . 2 1 1 . 3 . 7 Behemoth 1 | . . . . . . . . . . . . . . . . . . 1 . Compactor 2 | . . . . . . . . . . . . 2 . . . . . . . Assembled 3 | . . 3 . . . . . . . . . . . . . . . . . Best Kill Streak 9 | 1 3 1 6 1 . 3 9 7 3 2 4 2 1 2 2 3 8 3 2 Combat Bots Only 9 | . 3 1 5 1 . 3 9 7 3 2 4 2 1 2 2 3 6 3 2 Max Kills in Single Turn 7 | 1 1 1 3 1 . 2 3 2 2 1 2 1 1 1 1 1 7 2 1 Gunslinging 1 | . . . 1 . . . . . . . . . . . . . . . . Exploded 3 | . . 1 . . . 2 3 2 1 . 1 1 . . . . 3 2 . Melee 1 | . . 1 . . . . 1 . . 1 . . . 1 . 1 1 1 . Uniques/NPCs Destroyed . | . . . . . . . . . . . . . . . . . . . . Combat | -11 -10 -10 -9 -9 -9 -8 -8 -8 -8 -8 -7 -7 -7 -7 -7 -7 -6 -6 -5 -------- Run | Scr Mat Min Mat Min Exi Min Mat Gar Mat Gar Fac Was Fac Gar Fac Gar Fac Gar Fac Damage Taken 11380 | . 267 279 832 39 . 38 574 1325 477 237 1151 206 262 1353 235 672 829 842 1762 Core 1854 | . 26 99 124 . . 8 121 187 69 32 94 83 77 240 42 143 94 110 305 Absorbed by Shields 880 | . . . . . . . 28 115 . . 243 . . 22 45 52 66 141 168 Redirected to Shielding 6 | . . . . . . . . . . . . . . . . . 6 . . Regen/Repaired (Parts) 666 | . . . 107 . . . . . 208 . . . . . 351 . . . . Core Remaining (%) 53 | 100 . 50 . . . 67 . . . 25 . . . . . 3 . 76 . Volleys Fired 939 | 11 35 2 55 2 . 7 51 69 38 41 39 8 7 210 39 63 37 168 57 Largest 2 | 2 2 1 2 2 . 2 2 2 2 2 2 2 2 2 2 2 2 1 2 Hottest 130 | 40 100 30 130 130 . 119 130 126 120 120 117 84 96 130 113 108 101 60 101 Shots Fired 1412 | 22 70 2 109 4 . 14 102 131 75 82 72 12 12 277 48 68 48 168 96 Gun 803 | 22 70 . 103 2 . . 98 49 72 81 . 2 . 116 13 52 . 118 5 Cannon 464 | . . . 6 2 . 14 3 79 . . 69 4 7 147 13 2 30 5 83 Launcher 64 | . . 2 . . . . 1 3 3 1 3 6 . 7 . . . 38 . Special 81 | . . . . . . . . . . . . . 5 7 22 14 18 7 8 Kinetic 447 | 22 61 . . . . . . 84 38 . 68 6 7 22 19 5 22 5 88 Thermal 627 | . 9 . 103 2 . . 98 . . . . . . 241 7 49 . 118 . Explosive 12 | . . 2 . . . . 1 3 . . . 6 . . . . . . . Electromagnetic 245 | . . . 6 2 . 14 3 44 37 82 4 . . 7 . . 8 38 . Robot Hit Streak 30 | 3 11 . 20 7 . 8 8 15 10 5 10 13 6 30 9 15 21 3 13 Robot Miss Streak 9 | 4 7 . 7 1 . 1 9 5 2 2 3 1 1 2 3 2 3 2 4 Penetration Max 1 | . . . . . . . . 1 . . . . . . . . . . . Secondary Targets 7 | . . . 2 . . . . . 2 . . . . 2 . 1 . . . Max Gunslinging Chain 1 | . . . 1 . . . . . 1 . . . . 1 . 1 . . . Shots Hit Robots 744 | 11 37 3 91 3 . 12 87 82 55 22 51 9 9 88 42 32 42 13 55 Core Hits 450 | 4 15 3 122 3 . 8 78 35 23 10 26 6 3 34 10 8 16 23 23 Critical Kills 3 | . . . . . . . 1 2 . . . . . . . . . . . Critical Parts Destroyed 10 | . 3 1 . . . . . . 1 . . . . . 1 2 1 1 . Critical Strikes 32 | . 3 1 . . . 1 2 5 2 . 2 . 1 2 2 2 2 1 6 Burn 3 | . . . . . . . 1 . . . . . . 2 . . . . . Destroy 3 | . . . . . . . . 2 1 . . . . . . . . . . Blast 10 | . . . . . . . . 1 . . 1 . 1 . 1 . . . 6 Corrupt 6 | . . . . . . 1 . 2 1 . 1 . . . . . 1 . . Smash 10 | . 3 1 . . . . 1 . . . . . . . 1 2 1 1 . Melee Attacks 170 | . 12 5 1 . . . 6 31 1 10 7 19 4 13 7 25 6 23 . Impact 83 | . 12 5 1 . . . 6 . . . . . . . 5 25 6 23 . Slashing 64 | . . . . . . . . 19 . 10 . 19 1 13 2 . . . . Piercing . | . . . . . . . . . . . . . . . . . . . . Sneak Attacks 23 | . 3 . . . . . . 12 . . 3 . . . 1 2 2 . . Combat Hostiles 3 | . . . . . . . . . . . . . . . . 2 1 . . Follow-up Attacks . | . . . . . . . . . . . . . . . . . . . . Damage Inflicted 21024 | 96 695 206 1503 59 . 436 1504 2252 1518 969 1772 790 96 2714 753 701 2038 1201 1721 Guns 7647 | 96 379 . 1292 36 . . 1101 648 1367 409 . 27 . 1545 320 232 . 114 81 Cannons 6909 | . . . 117 23 . 299 113 1040 . . 1444 83 96 988 193 40 736 97 1640 Explosions 4251 | . . 88 94 . . 137 133 564 151 136 328 680 . 152 . . 881 907 . Melee 2217 | . 316 118 . . . . 157 . . 424 . . . 29 240 429 421 83 . Ramming . | . . . . . . . . . . . . . . . . . . . . Kinetic 6890 | 96 354 . . . . . . 1154 769 . 1414 110 96 231 326 78 444 97 1721 Thermal 6588 | . 25 . 1386 36 . 137 1101 51 . 70 104 . . 2302 187 194 881 114 . Explosive 1414 | . . 88 . . . . 133 513 . . . 680 . . . . . . . Electromagnetic 3915 | . . . 117 23 . 299 113 534 749 475 254 . . 152 . . 292 907 . Impact 1634 | . 316 118 . . . . 157 . . . . . . . 110 429 421 83 . Slashing 583 | . . . . . . . . . . 424 . . . 29 130 . . . . Piercing . | . . . . . . . . . . . . . . . . . . . . Highest Corruption 25 | . . . . . . . . . . 3 8 10 14 15 15 2 . . 25 Average Corruption 13 | . . . . . . . . . . 3 3 8 12 14 12 2 . . 6 Corruption Purged 15 | . . . . . . . . . . . . . . . 15 . . . . Corruption Blocked . | . . . . . . . . . . . . . . . . . . . . Effects 301 | . . . . . . . . . . . 8 10 38 179 59 2 . . 5 Message Errors 74 | . . . . . . . . . . . . 2 12 48 9 . . . 3 Matter Fused 74 | . . . . . . . . . . . 1 2 10 39 21 . . . 1 Heat Flow Errors 32 | . . . . . . . . . . . 2 1 3 19 7 . . . . Energy Discharges 39 | . . . . . . . . . . . 1 3 3 23 7 1 . . 1 Parts Rejected 2 | . . . . . . . . . . . . 1 1 . . . . . . Data Loss (minor) 29 | . . . . . . . . . . . 1 1 3 16 8 . . . . Data Loss (major) 11 | . . . . . . . . . . . . . 3 5 2 1 . . . Misfires 17 | . . . . . . . . . . . 1 . 3 12 1 . . . . Alerts 8 | . . . . . . . . . . . . . . 7 1 . . . . Weapon Failures 15 | . . . . . . . . . . . 2 . . 10 3 . . . . Overload Shots 148 | . . . . . . . . . . . . . . 61 3 15 . 69 . Effects 9 | . . . . . . . . . . . . . . 3 . 2 . 4 . Energy Bleed 5 | . . . . . . . . . . . . . . 3 . . . 2 . Heat Surge 4 | . . . . . . . . . . . . . . . . 2 . 2 . Overflow Damage 1149 | . 202 66 . . . . 78 43 . 36 69 . . 21 45 137 334 58 60 Projectiles 289 | . . . . . . . 44 40 . . 69 . . 21 . . 55 . 60 Explosions 139 | . . . . . . . 32 3 . . . . . . . . 104 . . Melee 721 | . 202 66 . . . . 2 . . 36 . . . . 45 137 175 58 . Knockbacks 53 | . 1 . . . . . . 8 . . 9 . . . 4 . 7 3 21 Impact 7 | . 1 . . . . . . . . . . . . . 2 . 3 1 . Kinetic 42 | . . . . . . . . 8 . . 8 . . . 2 . 4 2 18 Secondary 4 | . . . . . . . . . . . 1 . . . . . . . 3 Self-Inflicted Damage 313 | . . . . . . . 52 19 13 17 24 17 . . . . 171 . . Shots 8 | . . . . . . . 1 1 1 1 1 1 . . . . 2 . . Rammed . | . . . . . . . . . . . . . . . . . . . . Targets Rammed . | . . . . . . . . . . . . . . . . . . . . Kicked . | . . . . . . . . . . . . . . . . . . . . Crushed . | . . . . . . . . . . . . . . . . . . . . Highest Temperature 396 | . 18 . 139 36 . 69 396 175 102 171 357 236 216 260 270 263 176 310 181 Average Temperature 69 | . 5 . 30 14 . 30 92 61 27 61 122 144 86 67 59 69 61 97 45 Received Heat Transfer 2327 | . 33 136 276 18 . 9 242 449 234 180 119 . 99 216 68 108 67 54 19 Effects 9 | . . . . . . . 2 . . . . . . 1 2 . . 4 . Shutdowns 1 | . . . . . . . 1 . . . . . . . . . . . . Energy Bleed 2 | . . . . . . . 1 . . . . . . 1 . . . . . Interference 5 | . . . . . . . . . . . . . . . 2 . . 3 . Damage (minor) 1 | . . . . . . . . . . . . . . . . . . 1 . Siege Activations . | . . . . . . . . . . . . . . . . . . . . Robots Corrupted 8 | . . . . . . . . 1 2 1 . . . . . . . 4 . Combat Hostiles 8 | . . . . . . . . 1 2 1 . . . . . . . 4 . Parts Fried 31 | . 5 1 . . . . 1 2 4 . . . . . 1 3 9 5 . Impact Corruptions 22 | . 6 2 . . . . 1 . . . . . . . 1 5 3 4 . Robots Melted 1 | . . . . . . . . . . . . . . 1 . . . . . Combat Hostiles 1 | . . . . . . . . . . . . . . 1 . . . . . Parts Melted 20 | . . . 5 . . 1 1 . 1 . 1 . . 9 . 1 1 . . Heat Transferred 7877 | . 74 . 1843 45 . 100 1752 50 . 100 150 . . 2664 224 250 500 125 . Parts Sabotaged . | . . . . . . . . . . . . . . . . . . . . Parts Stolen . | . . . . . . . . . . . . . . . . . . . . Parts Stripped . | . . . . . . . . . . . . . . . . . . . . Power Chain Reactions 7 | . . . 1 . . 2 . 1 . 1 1 . . . . . . 1 . Missiles Intercepted . | . . . . . . . . . . . . . . . . . . . . Alert | -11 -10 -10 -9 -9 -9 -8 -8 -8 -8 -8 -7 -7 -7 -7 -7 -7 -6 -6 -5 ------- Run | Scr Mat Min Mat Min Exi Min Mat Gar Mat Gar Fac Was Fac Gar Fac Gar Fac Gar Fac Peak Influence 904 | 10 147 110 299 108 . 133 335 824 646 501 413 155 160 778 502 479 474 904 474 Initial 474 | . 6 14 6 23 . . . 101 401 43 262 144 88 1 408 154 240 217 474 Average 346 | 4 53 37 119 45 . 74 193 563 282 357 243 130 62 561 337 410 315 705 169 Maximum Alert Level 3 | . . . 1 . . . 1 3 2 2 2 . . 3 2 2 2 3 2 Low Security (%) 36 | 100 100 100 87 100 . 100 35 23 46 22 31 100 100 10 10 2 . . 63 Level 1 24 | . . . 12 . . . 64 4 2 27 62 . . 7 58 33 82 16 35 Level 2 24 | . . . . . . . . 25 51 50 6 . . 51 30 64 17 21 1 Level 3 14 | . . . . . . . . 45 . . . . . 30 . . . 60 . Level 4 . | . . . . . . . . . . . . . . . . . . . . Level 5 . | . . . . . . . . . . . . . . . . . . . . High Security . | . . . . . . . . . . . . . . . . . . . . Max Security . | . . . . . . . . . . . . . . . . . . . . Squads Dispatched 46 | . 2 1 2 1 . . 5 . 1 . 5 . 2 . 10 . 8 . 9 Investigation 8 | . 1 1 2 . . . 2 . . . 1 . . . 1 . . . . Extermination 14 | . . . . . . . . . . . 2 . 1 . 4 . 4 . 3 Reinforcement 17 | . 1 . . . . . 3 . 1 . 2 . 1 . 1 . 2 . 6 Assault 2 | . . . . 1 . . . . . . . . . . . . 1 . . Garrison 5 | . . . . . . . . . . . . . . . 4 . 1 . . Intercept . | . . . . . . . . . . . . . . . . . . . . Searches Triggered . | . . . . . . . . . . . . . . . . . . . . Construction Impeded 5 | . . . . . . . 1 . . . 1 . . . . . . . 3 Haulers Reinforced 3 | . . . . . . . . . . . 1 . . . 1 . 1 . . Active Scanning Responses . | . . . . . . . . . . . . . . . . . . . . Cargo Convoy Interrupts 2 | . . . . . . . . . . . 1 . . . . . . . 1 Stealth | -11 -10 -10 -9 -9 -9 -8 -8 -8 -8 -8 -7 -7 -7 -7 -7 -7 -6 -6 -5 --------- Run | Scr Mat Min Mat Min Exi Min Mat Gar Mat Gar Fac Was Fac Gar Fac Gar Fac Gar Fac Distress Signals 10 | . . . 1 . . . . 1 2 . 1 . 1 . 3 . . . 1 Communications Jammed 4 | . . . . . . . . . . . . . . . . . . . 4 Distress Signals 1 | . . . . . . . . . . . . . . . . . . . 1 Times Spotted 410 | . 18 8 40 3 . 6 30 32 19 10 34 7 16 43 27 18 34 28 37 Peak Tracking Total 14 | . 3 4 5 3 . 3 3 8 3 3 14 4 6 4 4 3 5 4 4 Tactical Retreats 30 | . 1 . . . . . 1 3 . 2 . 2 . 5 1 1 . 12 2 Traps | -11 -10 -10 -9 -9 -9 -8 -8 -8 -8 -8 -7 -7 -7 -7 -7 -7 -6 -6 -5 ------- Run | Scr Mat Min Mat Min Exi Min Mat Gar Mat Gar Fac Was Fac Gar Fac Gar Fac Gar Fac Traps Triggered 55 | . 1 . 1 . . . 3 6 . 7 2 . 1 11 . 10 1 11 1 Indirectly 8 | . . . . . . . . . . 1 . . . . . . . 7 . Trap Hack Attempts . | . . . . . . . . . . . . . . . . . . . . Triggered . | . . . . . . . . . . . . . . . . . . . . Disarmed 6 | . 6 . . . . . . . . . . . . . . . . . . Reprogrammed 4 | . . . 4 . . . . . . . . . . . . . . . . Reused 6 | . . . 2 . . . . . . . . . 1 . 2 . 1 . . Traps Reconfigurated 87 | . . . . . . . 3 11 3 4 1 . 9 17 12 . 19 7 1 Traps Extracted . | . . . . . . . . . . . . . . . . . . . . Installed . | . . . . . . . . . . . . . . . . . . . . Triggered 8 | . . . 2 . . . . . . . . . 1 . 2 . 1 . 2 Machines | -11 -10 -10 -9 -9 -9 -8 -8 -8 -8 -8 -7 -7 -7 -7 -7 -7 -6 -6 -5 ---------- Run | Scr Mat Min Mat Min Exi Min Mat Gar Mat Gar Fac Was Fac Gar Fac Gar Fac Gar Fac Machines Disabled 41 | . 1 . . . . . 5 2 3 2 7 . . 8 2 3 5 3 . Max in Single Turn 2 | . 1 . . . . . 2 1 1 1 . . . 1 1 1 2 1 . Garrison Access 1 | . . . . . . . . . . . . . . . . . 1 . . Garrison Relay 15 | . . . . . . . . 2 . 2 . . . 5 . 3 . 3 . Machines Sabotaged . | . . . . . . . . . . . . . . . . . . . . Garrisons Compromised 1 | . . . . . . . . . . . . . . . . . . . 1 Overloaded Fab Kills . | . . . . . . . . . . . . . . . . . . . . Hacking | -11 -10 -10 -9 -9 -9 -8 -8 -8 -8 -8 -7 -7 -7 -7 -7 -7 -6 -6 -5 --------- Run | Scr Mat Min Mat Min Exi Min Mat Gar Mat Gar Fac Was Fac Gar Fac Gar Fac Gar Fac Machines Accessed 77 | . 8 1 16 2 2 . 6 . 10 . 5 . 7 . 12 . 3 . 5 Terminals 41 | . 7 . 11 1 . . 2 . 6 . 3 . 3 . 4 . 1 . 3 Fabricators 4 | . . . . . . . . . . . . . 1 . 2 . . . 1 Repair Stations 7 | . . . 2 . . . 1 . 1 . . . 1 . 2 . . . . Recycling Units 7 | . 1 . 2 . . . 1 . . . 1 . 1 . 1 . . . . Scanalyzers 6 | . . . 1 . . . 1 . 2 . 1 . . . 1 . . . . Garrison Access 8 | . . . . . . . 1 . 1 . . . 1 . 2 . 2 . 1 Total Hacks 267 | . 26 1 71 4 2 . 21 . 47 . 20 . 20 . 31 . 9 . 15 Successful 176 | . 16 1 53 3 2 . 13 . 34 . 12 . 9 . 18 . 7 . 8 Failed 91 | . 10 . 18 1 . . 8 . 13 . 8 . 11 . 13 . 2 . 7 Catastrophic 10 | . . . 1 1 . . 1 . 1 . 3 . 1 . 1 . . . 1 Database Lockouts . | . . . . . . . . . . . . . . . . . . . . Manual 101 | . 16 . 25 3 1 . 11 . 11 . 1 . 13 . 9 . 3 . 8 Terminals 148 | . 23 . 39 3 . . 12 . 20 . 9 . 8 . 16 . 5 . 13 Fabricators 8 | . . . . . . . . . . . . . 2 . 5 . . . 1 Repair Stations 33 | . . . 6 . . . 4 . 15 . . . 2 . 6 . . . . Recycling Units 21 | . 3 . 6 . . . 2 . . . 2 . 7 . 1 . . . . Scanalyzers 43 | . . . 20 . . . 2 . 11 . 9 . . . 1 . . . . Garrison Access 10 | . . . . . . . 1 . 1 . . . 1 . 2 . 4 . 1 Terminal Hacks 52 | . 9 1 14 2 2 . 1 . 5 . 2 . 2 . 6 . 3 . 5 Record 1 | . . . . . 1 . . . . . . . . . . . . . . Part Schematic 2 | . . . 1 . . . . . . . . . . . 1 . . . . Robot Schematic 2 | . . . . . . . . . . . . . . . 1 . . . 1 Robot Analysis 11 | . 2 . 5 . . . . . 1 . 2 . . . . . . . 1 Prototype ID Bank 8 | . 2 . 2 . . . 1 . 1 . . . . . 1 . 1 . . Open Door 2 | . . 1 . 1 . . . . . . . . . . . . . . . Terminal Index 6 | . 1 . 1 1 . . . . 1 . . . . . 1 . 1 . . Garrison Index 1 | . . . . . . . . . . . . . . . . . . . 1 Alert Level 2 | . . . 2 . . . . . . . . . . . . . . . . Unreport Threat 6 | . . . 2 . . . . . 2 . . . . . . . . . 2 Locate Traps 6 | . 1 . . . . . . . . . . . 2 . 2 . 1 . . Disarm Traps 1 | . 1 . . . . . . . . . . . . . . . . . . Reprogram Traps 1 | . . . 1 . . . . . . . . . . . . . . . . Recall Investigation 1 | . 1 . . . . . . . . . . . . . . . . . . Recall Reinforcements 1 | . 1 . . . . . . . . . . . . . . . . . . EX-Prototype ID Bank 1 | . . . . . 1 . . . . . . . . . . . . . . Fabricator Hacks 3 | . . . . . . . . . . . . . . . 2 . . . 1 Build 3 | . . . . . . . . . . . . . . . 2 . . . 1 Repair Station Hacks 23 | . . . 6 . . . 2 . 12 . . . 1 . 2 . . . . Scan Component 13 | . . . 3 . . . 2 . 6 . . . 1 . 1 . . . . Repair 10 | . . . 3 . . . . . 6 . . . . . 1 . . . . Recycling Unit Hacks 7 | . 1 . 2 . . . 1 . . . 1 . 1 . 1 . . . . Retrieve Components 7 | . 1 . 2 . . . 1 . . . 1 . 1 . 1 . . . . Scanalyzer 42 | . . . 20 . . . 2 . 11 . 9 . . . . . . . . Insert Component 19 | . . . 9 . . . 1 . 5 . 4 . . . . . . . . Analyze 23 | . . . 11 . . . 1 . 6 . 5 . . . . . . . . Garrison Access Hacks 8 | . . . . . . . 1 . 1 . . . 1 . 2 . 2 . 1 Unlock Access 8 | . . . . . . . 1 . 1 . . . 1 . 2 . 2 . 1 Unauthorized Hacks 41 | . 6 . 11 1 . . 6 . 5 . . . 4 . 5 . 2 . 1 Terminals 28 | . 5 . 7 1 . . 5 . 5 . . . . . 3 . 1 . 1 Track 7 | . 1 . 3 1 . . . . 2 . . . . . . . . . . Assimilate 2 | . . . . . . . 2 . . . . . . . . . . . . Botnet 15 | . 3 . 3 . . . 2 . 2 . . . . . 3 . 1 . 1 Operators 4 | . 1 . 1 . . . 1 . 1 . . . . . . . . . . Fabricators 3 | . . . . . . . . . . . . . 1 . 2 . . . . Fabnet 3 | . . . . . . . . . . . . . 1 . 2 . . . . Repair Stations . | . . . . . . . . . . . . . . . . . . . . Recycling Units 9 | . 1 . 4 . . . 1 . . . . . 3 . . . . . . Monitor 2 | . . . 1 . . . . . . . . . 1 . . . . . . Reject 5 | . 1 . 2 . . . 1 . . . . . 1 . . . . . . Recyclers 2 | . . . 1 . . . . . . . . . 1 . . . . . . Scanalyzers . | . . . . . . . . . . . . . . . . . . . . Garrison Access 1 | . . . . . . . . . . . . . . . . . 1 . . Reprogram 1 | . . . . . . . . . . . . . . . . . 1 . . Data Cores Recovered 1 | . . . 1 . . . . . . . . . . . . . . . . Used 1 | . . . 1 . . . . . . . . . . . . . . . . Hacking Detections 63 | . 7 . 14 1 . . 4 . 10 . 5 . 6 . 10 . 2 . 4 Full Trace Events 3 | . . . . . . . 1 . . . 1 . . . 1 . . . . Feedback Events . | . . . . . . . . . . . . . . . . . . . . Feedback Blocked . | . . . . . . . . . . . . . . . . . . . . Robot Schematics Acquired 2 | . . . . . . . . . . . . . . . 1 . . . 1 Robots Built 5 | . . . . . . . . . . . . . . . 4 . . . 1 Authchips . | . . . . . . . . . . . . . . . . . . . . Time 215 | . . . . . . . . . . . . . . . 134 . . . 81 Total Robot Build Rating 17 | . . . . . . . . . . . . . . . 16 . . . 1 Part Schematics Acquired 20 | . . . 10 . . . 1 . 4 . 4 . . . 1 . . . . Parts Built 2 | . . . . . . . . . . . . . . . 2 . . . . Authchips . | . . . . . . . . . . . . . . . . . . . . Time 42 | . . . . . . . . . . . . . . . 42 . . . . Total Part Build Rating 8 | . . . . . . . . . . . . . . . 8 . . . . Parts Repaired 10 | . . . 3 . . . . . 6 . . . . . 1 . . . . Time 488 | . . . 99 . . . . . 290 . . . . . 99 . . . . Parts Recycled . | . . . . . . . . . . . . . . . . . . . . Recycled Matter . | . . . . . . . . . . . . . . . . . . . . Retrieved Matter . | . . . . . . . . . . . . . . . . . . . . Retrieved Components 17 | . . . 6 . . . . . . . 1 . . . 10 . . . . Parts Scanalyzed 18 | . . . 9 . . . 1 . 4 . 4 . . . . . . . . Part Schematics Acquired 18 | . . . 9 . . . 1 . 4 . 4 . . . . . . . . Parts Damaged 1 | . . . . . . . . . 1 . . . . . . . . . . Bothacking | -11 -10 -10 -9 -9 -9 -8 -8 -8 -8 -8 -7 -7 -7 -7 -7 -7 -6 -6 -5 ------------ Run | Scr Mat Min Mat Min Exi Min Mat Gar Mat Gar Fac Was Fac Gar Fac Gar Fac Gar Fac Used RIF Installer 5 | . . . . . . . . 1 . 1 . . . 1 . 1 . 1 . Hotswap 1 | . . . . . . . . . . . . . . . . 1 . . . Command Fork 1 | . . . . . . . . . . 1 . . . . . . . . . Threat Obfuscator 1 | . . . . . . . . . . . . . . 1 . . . . . Autoassimilate 1 | . . . . . . . . . . . . . . . . . . 1 . Robots Hacked 60 | . . . . . . . . . 1 . 6 . 4 6 13 7 9 7 7 Non-combat 18 | . . . . . . . . . . . 3 . 2 . 9 . 3 . 1 Combat 42 | . . . . . . . . . 1 . 3 . 2 6 4 7 6 7 6 Autoassimilated 1 | . . . . . . . . . . . . . . . . . . 1 . Robot Hacks Applied 60 | . . . . . . . . . 1 . 7 . 5 6 14 8 9 4 6 parse_system 7 | . . . . . . . . . . . 1 . 2 . 1 1 2 . . no_distress 1 | . . . . . . . . . . . . . . . 1 . . . . find_chute 4 | . . . . . . . . . . . 2 . . . . . 2 . . find_fabricator 1 | . . . . . . . . . . . . . . . . . 1 . . ignore_parts 5 | . . . . . . . . . . . . . . . 5 . . . . find_garrison 3 | . . . . . . . . . . . 1 . . . 1 . 1 . . scatter_targeting 1 | . . . . . . . . . . . . . . . . . 1 . . amplify_resonance 7 | . . . . . . . . . . . . . 1 4 . . . . 2 disable_weapons 1 | . . . . . . . . . . . . . . . . 1 . . . go_dormant 1 | . . . . . . . . . . . . . . . . . 1 . . streamctrl_high 3 | . . . . . . . . . . . 1 . 1 . 1 . . . . formatsys_low 3 | . . . . . . . . . . . . . . . 2 . . . 1 formatsys_high 23 | . . . . . . . . . 1 . 2 . 1 2 3 6 1 4 3 Relay Couplers Released 55 | . . . . . . . . 7 . 6 . . . 17 . 10 2 13 . Machine Destruction 55 | . . . . . . . . 7 . 6 . . . 17 . 10 2 13 . Attached 20 | . . . . . . . . . 1 . 2 . 2 4 4 1 2 3 1 Fabnet Peak Effective % 9 | . . . . . . . . . . . . . . . . . 9 9 3 Autooverrided 5 | . . . . . . . . . . . . . . . . . 2 2 1 Robots Rewired 9 | . . . . . . . . 6 . . . . . . . . 3 . . Allies Hacked 1 | . . . . . . . . . . . . . . . 1 . . . . Hacks Repelled 1 | . . . . . . . . . . . 1 . . . . . . . . Allies | -11 -10 -10 -9 -9 -9 -8 -8 -8 -8 -8 -7 -7 -7 -7 -7 -7 -6 -6 -5 -------- Run | Scr Mat Min Mat Min Exi Min Mat Gar Mat Gar Fac Was Fac Gar Fac Gar Fac Gar Fac Total Allies 62 | . . 3 . 3 . . . 6 1 . 4 . 2 3 11 8 6 9 6 Largest Group 10 | . . 3 3 3 3 1 . 6 7 5 4 1 1 2 6 7 10 6 6 Highest-Rated Group 266 | . . 40 40 76 76 31 . 93 108 77 62 40 19 32 92 173 266 213 213 Highest-Rated Ally 49 | . . 16 16 31 31 31 . 16 16 16 40 40 19 32 32 32 41 47 49 Total Orders 84 | . . 4 . . . . . 4 7 5 8 . . 3 15 11 2 12 13 STAY 44 | . . 2 . . . . . 2 4 3 4 . . 2 5 7 1 8 6 FOLLOW 33 | . . 2 . . . . . 2 3 2 4 . . 1 3 4 1 4 7 AID 7 | . . . . . . . . . . . . . . . 7 . . . . Ally Attacks 467 | . . 29 11 10 . 7 . 10 24 30 42 8 9 16 102 10 87 23 49 Total Damage 8696 | . . 260 141 169 . 84 . 158 360 546 793 274 98 320 1759 219 1918 504 1093 Kills 84 | . . 6 3 3 . 1 . 2 4 8 7 . 1 4 16 2 12 5 10 Allies Corrupted 3 | . . . . . . . . . . . . . . . 1 . . . 2 Allies Melted 1 | . . . . . . . . . . . . . . . . . 1 . . Intel | -11 -10 -10 -9 -9 -9 -8 -8 -8 -8 -8 -7 -7 -7 -7 -7 -7 -6 -6 -5 ------- Run | Scr Mat Min Mat Min Exi Min Mat Gar Mat Gar Fac Was Fac Gar Fac Gar Fac Gar Fac Robot Analysis Total 11 | . 2 . 5 . . . . . 1 . 2 . . . . . . . 1 Derelict Logs Recovered 3 | . . 2 . 1 . . . . . . . . . . . . . . . Drone Launches . | . . . . . . . . . . . . . . . . . . . . Drone Recoveries . | . . . . . . . . . . . . . . . . . . . . Exploration | -11 -10 -10 -9 -9 -9 -8 -8 -8 -8 -8 -7 -7 -7 -7 -7 -7 -6 -6 -5 ------------- Run | Scr Mat Min Mat Min Exi Min Mat Gar Mat Gar Fac Was Fac Gar Fac Gar Fac Gar Fac Turns Passed 34351 | 110 1334 904 2720 892 374 529 1730 2477 2324 1446 1325 288 973 4339 1847 2684 2257 3869 1929 Spaces Moved 17866 | 54 1057 574 1530 519 260 343 799 1281 1092 771 728 125 503 2211 867 1395 1165 1608 984 Core 4 | 4 . . . . . . . . . . . . . . . . . . . Treads . | . . . . . . . . . . . . . . . . . . . . Legs 54 | 50 4 . . . . . . . . . . . . . . . . . . Wheels 17808 | . 1053 574 1530 519 260 343 799 1281 1092 771 728 125 503 2211 867 1395 1165 1608 984 Hover . | . . . . . . . . . . . . . . . . . . . . Flight . | . . . . . . . . . . . . . . . . . . . . Fastest Speed 50 | 50 100 115 130 140 140 140 150 150 145 145 145 145 145 145 145 145 145 145 145 Average Speed 149 | 114 102 128 149 144 140 143 151 151 147 145 151 145 145 145 145 145 171 174 170 Slowest Speed 225 | 120 120 130 190 145 140 150 165 225 210 150 160 145 145 145 145 160 175 175 175 Overloaded Moves . | . . . . . . . . . . . . . . . . . . . . Propulsion Burnouts . | . . . . . . . . . . . . . . . . . . . . Robots Hopped . | . . . . . . . . . . . . . . . . . . . . Cave-ins Triggered 7 | . . . . . . . . 1 . . . 1 . . . 1 . 2 2 Exploration Rate (%) 60 | 4 96 95 96 91 61 69 42 85 57 64 20 70 18 87 24 83 33 92 28 Regions Visited 19 Branch Regions 4 Pre-discovered Areas 2 | . . 1 . . 1 . . . . . . . . . . . . . . Known Exits Taken 5 | . . . . . . . 1 . 1 . . . 1 . 1 . 1 . . Unknown Exits Taken 7 | 1 1 1 1 1 1 1 . . . . . . . . . . . . . Scrap Searched 7 | . . 3 . 3 . 1 . . . . . . . . . . . . . Spaces Dug 223 | . 4 . 1 . . . 2 11 . . . 19 1 70 . 21 . 86 8 Terrain Destroyed 414 | . 4 11 4 . . 9 36 20 4 9 29 57 2 77 . 27 17 89 19 Melee 70 | . 4 . 1 . . . 2 10 . . . 19 1 10 . 8 . 15 . Projectile 208 | . . . . . . . . 1 4 . 19 1 1 67 . 19 5 72 19 AOE 136 | . . 11 3 . . 9 34 9 . 9 10 37 . . . . 12 2 . Terrain Rammed . | . . . . . . . . . . . . . . . . . . . . Walls Destroyed . | . . . . . . . . . . . . . . . . . . . . Machines Disabled . | . . . . . . . . . . . . . . . . . . . . Actions | -11 -10 -10 -9 -9 -9 -8 -8 -8 -8 -8 -7 -7 -7 -7 -7 -7 -6 -6 -5 --------- Run | Scr Mat Min Mat Min Exi Min Mat Gar Mat Gar Fac Was Fac Gar Fac Gar Fac Gar Fac Total 23932 | 81 1220 729 1856 660 269 365 1221 1639 1723 991 873 185 737 3076 1403 1942 1364 2454 1144 Wait 3702 | . 59 121 186 122 . 10 297 147 533 89 47 16 191 447 418 356 73 548 42 Move 17843 | 53 1056 573 1529 518 259 342 798 1279 1092 769 728 124 502 2210 866 1392 1164 1605 984 Hop . | . . . . . . . . . . . . . . . . . . . . Pick Up 246 | 9 21 15 31 5 3 2 15 19 15 6 9 7 8 21 10 10 17 13 10 Fast Attach 74 | 7 1 . 3 . . . 10 5 4 . 2 . 4 10 10 2 5 2 9 Attach 101 | . 2 2 9 . . . 9 6 5 3 7 7 3 15 4 3 7 8 11 Detach 13 | . . . 1 . . . 3 . . . . 1 . 4 . . 1 . 3 Swap 290 | . 17 5 15 6 4 2 11 21 26 10 22 2 8 42 26 11 30 20 12 Drop 227 | 1 17 6 26 7 3 2 21 17 9 4 9 1 10 22 21 7 16 12 16 Fire 939 | 11 35 2 55 2 . 7 51 69 38 41 39 8 7 210 39 63 37 168 57 Melee 170 | . 12 5 1 . . . 6 31 1 10 7 19 4 13 7 25 6 23 . Ram . | . . . . . . . . . . . . . . . . . . . . Kick . | . . . . . . . . . . . . . . . . . . . . Crush . | . . . . . . . . . . . . . . . . . . . . Escape Stasis 316 | . . . . . . . . 43 . 57 . . . 79 1 73 8 55 . Rewire 11 | . . . . . . . . 2 . 2 3 . . 3 1 . . . . Trap . | . . . . . . . . . . . . . . . . . . . . Miscellaneous . | . . . . . . . . . . . . . . . . . . . . Route ------- -11/Scrapyard -10/Materials (discovered 5 exits: *Mat x3 / *Min x2) -10/Mines -9/Materials (discovered 5 exits: *Mat x3 / *Min / [*Sto]) -9/Mines (discovered 3 exits: *Mat x2 / *Exi) -9/Exiles -8/Mines (discovered 2 exits: *Mat x2) -8/Materials (discovered 2 exits: *Fac / Gar) -8/Garrison (discovered 3 exits: *Mat x3) -8/Materials (discovered 3 exits: *Fac x2 / Gar) -8/Garrison -7/Factory -7/Waste -7/Factory (discovered 2 exits: *Fac / Gar) -7/Garrison (discovered 3 exits: *Fac x3) -7/Factory (discovered 3 exits: [*Low] / Gar / Gar) -7/Garrison (discovered 3 exits: *Fac x3) -6/Factory (discovered 3 exits: *Fac x2 / Gar) -6/Garrison (discovered 3 exits: *Fac x3) -5/Factory (discovered 3 exits: [*Fac] / [*Upp] / Gar) History --------- Turn | Location | Event 8 | -11/Scrapyard | Discovered new exit (range 16) 111 | -11/Scrapyard | Entered Materials 307 | -10/Materials | Build established: Mutant 423 | -10/Materials | Discovered new exit (range 8) 644 | -10/Materials | Discovered new exit (range 8) 728 | -10/Materials | Discovered new exit (range 5) 1126 | -10/Materials | Discovered new exit (range 5) 1325 | -10/Materials | Discovered new exit (range 13) 1445 | -10/Materials | Entered Mines 1500 | -10/Mines | Assisted by bots powering up and referring to "LRC-V3" 1506 | -10/Mines | Assembled infested the area 1676 | -10/Mines | Learned Materials stockpile data 1794 | -10/Mines | Learned Materials stockpile data 1943 | -10/Mines | Discovered new exit (range 14) 2182 | -10/Mines | Learned location of Storage (-9) 2280 | -10/Mines | Met a Derelict shopkeep closing up shop 2349 | -10/Mines | Entered Materials 2349 | -9/Materials | Accompanied by 3 allies 2349 | -9/Materials | Evolved 2 slots: Utility x2 3124 | -9/Materials | Discovered new exit (range 16) 3647 | -9/Materials | Discovered new exit (range 3) 3699 | -9/Materials | Discovered new exit (range 12) 3771 | -9/Materials | Discovered new exit (range 9) 4210 | -9/Materials | Discovered new exit (range 4) 4899 | -9/Materials | Repaired Spread Laser 4985 | -9/Materials | Repaired Spread Laser 5037 | -9/Materials | Repaired Cld. Ion Engine 5069 | -9/Materials | Entered Mines 5233 | -9/Mines | Discovered new exit (range 5) 5234 | -9/Mines | Learned Materials stockpile data 5522 | -9/Mines | Met a Derelict testing a Signal Generator 5684 | -9/Mines | Met a Derelict who couldn't figure out how to use a Trap Extractor 5882 | -9/Mines | Discovered new exit (range 10) 5947 | -9/Mines | Deemed a non-threat by the Exiles lab entrance 5947 | -9/Mines | Discovered new exit (range 5) 5961 | -9/Mines | Entered Exiles 5961 | -9/Exiles | Accompanied by 3 allies 5991 | -9/Exiles | Led the pair of lost Derelicts to a safe place 5996 | -9/Exiles | Met 8R-AWN 6020 | -9/Exiles | Met EX-HEX 6073 | -9/Exiles | Met EX-DEC 6083 | -9/Exiles | Learned location of Zion (-6) 6106 | -9/Exiles | Met EX-BIN 6129 | -9/Exiles | Aligned with FarCom system 6131 | -9/Exiles | Given EX-Vault access code 6163 | -9/Exiles | Opened EX-Vault 6188 | -9/Exiles | Found Trap Reconfigurator 6221 | -9/Exiles | Warned to stay clear of 0b10 Research branches 6315 | -9/Exiles | Discovered new exit (range 14) 6335 | -9/Exiles | Left Exiles lab with Trap Reconfigurator 6335 | -9/Exiles | Entered Mines 6335 | -8/Mines | Accompanied by 1 ally 6614 | -8/Mines | Discovered new exit (range 12) 6853 | -8/Mines | Discovered new exit (range 7) 6864 | -8/Mines | Entered Materials 6864 | -8/Materials | Evolved 2 slots: Utility x2 6905 | -8/Materials | Identified exit to Garrison 7340 | -8/Materials | Destroyed 9 combat bots 7351 | -8/Materials | Discovered new exit (range 7) 8594 | -8/Materials | Entered Garrison 8603 | -8/Garrison | Installed Relay Interface Framework 8690 | -8/Garrison | Triggered checkpoint 9052 | -8/Garrison | Triggered checkpoint 9186 | -8/Garrison | Triggered checkpoint 9189 | -8/Garrison | Triggered checkpoint 9254 | -8/Garrison | Triggered checkpoint 9320 | -8/Garrison | Lost 3 parts (1p2u) 9325 | -8/Garrison | Destroyed 7 combat bots 9484 | -8/Garrison | Destroyed 7 combat bots 9494 | -8/Garrison | Triggered checkpoint 9516 | -8/Garrison | Triggered checkpoint 9540 | -8/Garrison | Discovered new exit (range 8) 9696 | -8/Garrison | Discovered new exit (range 8) 9815 | -8/Garrison | Discovered new exit (range 19) 9816 | -8/Garrison | Triggered checkpoint 9855 | -8/Garrison | Build established: Commander-Mutant 9942 | -8/Garrison | Garrison Relay disabled 10460 | -8/Garrison | Crushed by falling debris 10461 | -8/Garrison | Core integrity fell below 50% 10840 | -8/Garrison | Garrison Relay disabled 11028 | -8/Garrison | Triggered checkpoint 11071 | -8/Garrison | Entered Materials 11071 | -8/Materials | Accompanied by 6 allies 11148 | -8/Materials | Build established: Bothacker-Mutant 11239 | -8/Materials | Discovered new exit (range 8) 11897 | -8/Materials | Discovered new exit (range 10) 12544 | -8/Materials | Repaired Thermal Shield 12583 | -8/Materials | Repaired Reactive Plating 13168 | -8/Materials | Repaired Broken Coil Gun 13213 | -8/Materials | Repaired Kinecellerator 13264 | -8/Materials | Repaired Hpw. Shock Rifle 13303 | -8/Materials | Repaired Missile Launcher 13395 | -8/Materials | Identified exit to Garrison 13395 | -8/Materials | Entered Garrison 13395 | -8/Garrison | Accompanied by 5 allies 13698 | -8/Garrison | Triggered checkpoint 13801 | -8/Garrison | Garrison Relay disabled 14026 | -8/Garrison | Triggered checkpoint 14230 | -8/Garrison | Triggered checkpoint 14262 | -8/Garrison | Garrison Relay disabled 14291 | -8/Garrison | Discovered new exit (range 14) 14321 | -8/Garrison | Expanded RIF knowledge: Command Fork 14841 | -8/Garrison | Entered Factory 14841 | -7/Factory | Accompanied by 4 allies 14841 | -7/Factory | Evolved 2 slots: Utility x2 16048 | -7/Factory | Cargo convoy interrupted 16166 | -7/Factory | Sucked down chute 16166 | -7/Factory | Entered Waste 16167 | -7/Waste | Lost 4 parts (1n3u) 16170 | -7/Waste | 1 allies followed down the chute 16198 | -7/Waste | Spotted C-40 Crusher 16204 | -7/Waste | Spotted C-40 Crusher 16207 | -7/Waste | Spotted C-40 Crusher 16213 | -7/Waste | Destroyed C-40 Crusher 16221 | -7/Waste | Crushed by Compactor (1 part destroyed) 16228 | -7/Waste | Destroyed C-40 Crusher 16246 | -7/Waste | Crushed by Compactor (1 part destroyed) 16316 | -7/Waste | Spotted C-40 Crusher 16318 | -7/Waste | Spotted C-40 Crusher 16319 | -7/Waste | Found Damper Plating 16379 | -7/Waste | Crushed by falling debris 16379 | -7/Waste | System corruption reached 10% 16409 | -7/Waste | Spotted C-40 Crusher 16420 | -7/Waste | Discovered new exit (range 11) 16454 | -7/Waste | Entered Factory 16583 | -7/Factory | Discovered new exit (range 4) 17064 | -7/Factory | Identified exit to Garrison 17427 | -7/Factory | Entered Garrison 17496 | -7/Garrison | Triggered checkpoint 17524 | -7/Garrison | Garrison Relay disabled 17662 | -7/Garrison | Triggered checkpoint 17748 | -7/Garrison | Discovered new exit (range 15) 17826 | -7/Garrison | Triggered checkpoint 18056 | -7/Garrison | Garrison Relay disabled 18139 | -7/Garrison | Garrison Relay disabled 18320 | -7/Garrison | Triggered checkpoint 18521 | -7/Garrison | Spotted B-75 Beast 18521 | -7/Garrison | Spotted B-75 Beast 18581 | -7/Garrison | Core integrity fell below 50% 18801 | -7/Garrison | Spotted B-75 Beast 18801 | -7/Garrison | Spotted B-75 Beast 18952 | -7/Garrison | Discovered new exit (range 14) 19094 | -7/Garrison | Triggered checkpoint 19586 | -7/Garrison | Triggered checkpoint 19648 | -7/Garrison | Discovered new exit (range 8) 19670 | -7/Garrison | Expanded RIF knowledge: Threat Obfuscation 19808 | -7/Garrison | Triggered checkpoint 19848 | -7/Garrison | Garrison Relay disabled 20068 | -7/Garrison | Triggered checkpoint 20087 | -7/Garrison | Garrison Relay disabled 20679 | -7/Garrison | Triggered checkpoint 21766 | -7/Garrison | Entered Factory 21802 | -7/Factory | Discovered new exit (range 14) 21950 | -7/Factory | Repaired Adv. KE Penetrator 22352 | -7/Factory | Garrison activated, responded to threat 22481 | -7/Factory | Fabricated S-27 Virus? 22580 | -7/Factory | Fabricated Energy Filter (x2) 22793 | -7/Factory | Identified exit to Garrison 23554 | -7/Factory | Identified exit to Garrison 23565 | -7/Factory | Garrison activated, responded to threat 23613 | -7/Factory | Entered Garrison 23644 | -7/Garrison | Triggered checkpoint 23710 | -7/Garrison | Garrison Relay disabled 23854 | -7/Garrison | Triggered checkpoint 24290 | -7/Garrison | Core integrity fell below 20% 24458 | -7/Garrison | Discovered new exit (range 15) 24493 | -7/Garrison | Expanded RIF knowledge: Hotswap 24576 | -7/Garrison | Garrison Relay disabled 24718 | -7/Garrison | Triggered checkpoint 24740 | -7/Garrison | Garrison Relay disabled 24773 | -7/Garrison | Discovered new exit (range 10) 24876 | -7/Garrison | Triggered checkpoint 25241 | -7/Garrison | Discovered new exit (range 3) 25276 | -7/Garrison | Triggered checkpoint 26133 | -7/Garrison | Crushed by falling debris 26297 | -7/Garrison | Entered Factory 26297 | -6/Factory | Accompanied by 7 allies 26297 | -6/Factory | Evolved 2 slots: Utility x2 26633 | -6/Factory | Garrison activated, responded to threat 26700 | -6/Factory | Identified exit to Garrison 26717 | -6/Factory | Local machine network offline 26740 | -6/Factory | Discovered new exit (range 9) 26771 | -6/Factory | Lost 4 parts (4u) 28049 | -6/Factory | Discovered new exit (range 11) 28508 | -6/Factory | Identified exit to Garrison 28554 | -6/Factory | Entered Garrison 28554 | -6/Garrison | Accompanied by 1 ally 28762 | -6/Garrison | Crushed by falling debris 28782 | -6/Garrison | Crushed by falling debris 28794 | -6/Garrison | Triggered checkpoint 28839 | -6/Garrison | Garrison Relay disabled 29008 | -6/Garrison | Triggered checkpoint 29019 | -6/Garrison | Local machine network offline 29019 | -6/Garrison | Triggered checkpoint 29163 | -6/Garrison | Spotted B-75 Beast 29393 | -6/Garrison | Destroyed B-75 Beast 29572 | -6/Garrison | Discovered new exit (range 10) 30100 | -6/Garrison | Triggered checkpoint 30174 | -6/Garrison | Discovered new exit (range 10) 30254 | -6/Garrison | Triggered checkpoint 31010 | -6/Garrison | Triggered checkpoint 31093 | -6/Garrison | Garrison Relay disabled 31158 | -6/Garrison | Discovered new exit (range 10) 31186 | -6/Garrison | Expanded RIF knowledge: Autoassimilate 31878 | -6/Garrison | Build established: Botlord-Mutant 32423 | -6/Garrison | Entered Factory 32423 | -5/Factory | Accompanied by 6 allies 32423 | -5/Factory | Evolved 2 slots: Utility x2 32844 | -5/Factory | Fabricated K-01 Serf? 32911 | -5/Factory | Local machine network offline 33153 | -5/Factory | Discovered new exit (range 4) 33436 | -5/Factory | P-70 Sage assimilated allied Veteran 5b 33703 | -5/Factory | Build established: Bothacker-Mutant 33808 | -5/Factory | Identified exit to Garrison 33865 | -5/Factory | Discovered new exit (range 8) 33873 | -5/Factory | Cargo convoy interrupted 34300 | -5/Factory | Crushed by falling debris 34300 | -5/Factory | System corruption reached 10% 34302 | -5/Factory | Crushed by falling debris 34352 | -5/Factory | Self-destructed Last Messages --------------- 34340_ C-35 Carver destroyed. 34342_ Arm. Huge Wheel destroyed. 34343_ P-70 Sage knocked back. 34343_ Slug penetrates Wall. 34344_ U-05 Engineer builds a Wall. 34346_ U-05 Engineer knocked back. 34346_ Slug penetrates H-71 Marshal. 34347_ H-71 Marshal calls for reinforcements. 34347_ ALERT: Hostile activity reported, dispatching reinforcements to area. 34347_ Slug penetrates Wall. 34348_ Recoil Nullifier destroyed. 34349_ U-05 Engineer knocked back. 34349_ Slug penetrates H-71 Marshal. 34349_ ALERT: Construction progress impeded, dispatching reinforcements to local area. 34350_ U-05 Engineer builds a Wall. 34350_ Enh. Nuclear Core severed. 34351_ /XPYPGLWAJ/WI4QZ%ZZFD OQ#EYWARKV,M%H|U 34352_ Relay Coupler [NC] destroyed. Map ----- +----------------------------------------------------+ | ?????????????????????????????????????????????????? | | ?????????????????????????????????????????????????? | | ?????????????????????????????????????????????????? | | ?????????????????????????????????????????????????? | | ?????????????????????????????????????????????????? | | ?????????????????????????????????????????????????? | | # ##??????????????????????????????################ | | T" ??????????????????????????# + | | ####??????????????????????????????# """""" # | | #???????????????????????????????# """""" # | | #??????????????????????????????## """""" # | | #??????????????????????????????#" """""" # | | #?????####????????????????????# #! # | | #??? #????????????????####### """""" +| | | ###### #????????????????# " """""" # | | #????????????????# #####% """"""" # | | ##########???????# #??## " "" "%% # | | # ##??#####+##### " %# | | """ """ #"""" ###?# # % " | | """ """ #"""" ##### ##+#"#####+### | | """ """ #"""" # ### = ## ###??? ?? | | """ """ #"""" ## # ## #????? ?? | | #"""" ### # ## #????? ?? | | #"""" ! #?###%=%H/% ## #????? ?? | | # ! #?? #!cup* ## #????? ? | | ##+### # ! #??##@u%=%% ## #????? ?# T# | | # #####+#########c###+##### #### ?###? | | ! ! # %[%% ???? | | !# % ???? | | # % ???? | | """ # ????? | | """ # ????? | | """ ###########+##### ####+######+######?????? | | #???????????????# #??????????? ?????????? | | """ #???????????????# #???????????? ????????? | | """ #???????????????# #?????????????""???????? | | """ #???????????????# #??????????????????????? | | #???????????????# #??????????????????????? | | ######???????????????# #??????????????????????? | | ?????????????????????# #??????????????????????? | | ?????????????????????# #??????????????????????? | | ?????????????????????# #??????????????????????? | | ?????????????????????# #??????????????????????? | | ?????????????????????# #??????????????????????? | | ?????????????????????# ???????????????????????? | | ?????????????????????# ??????????#+???????#+#?? | | ??????????????????????? ?????????? ???????# #?? | | ????????????????????????????????????# ???????# #?? | | ????????????????????????????????????# ???????# ### | | ????????????????????????????????????# ???????# | +----------------------------------------------------+ Best States ------------- Heat Dissipation 64 Energy Generation 23 Energy Capacity 480 Matter Stores 300 Matter Capacity 300 Sight Range 20 Terrain Scan Range 16 Terrain Scan Density 10 Jamming Range 12 Power Amplification 20 Armor Coverage 1825 Resistance: KI 20 Resistance: TH 20 Resistance: EM 90 Propulsion Shielding 66 Weapon Cycling 15 Evasion (%) 55 Targeting Accuracy 8 Armor Integrity Analysis 40 Recoil Reduction 6 Energy Filtering 30 Particle Charging 15 Kinecelleration 30 Offensive Hacking 10 Defensive Hacking 12 Relay Coupler Types 4 Relay Coupler Value 77 Authchip Count 1 Item Schematics ----------------- Hcp. Storage Unit | -9/Materials | Hacked EM Pulse Cannon | -9/Materials | Scanalyzed Arm. Wheel | -9/Materials | Scanalyzed Cld. Ion Engine | -9/Materials | Scanalyzed Huge Storage Unit | -9/Materials | Scanalyzed Missile Launcher | -9/Materials | Scanalyzed Reactive Plating | -9/Materials | Scanalyzed Machine Analyzer | -9/Materials | Scanalyzed Hcp. Battery | -9/Materials | Scanalyzed Adv. Visual Processing Unit | -9/Materials | Scanalyzed Arm. Huge Wheel | -8/Materials | Scanalyzed Kinecellerator | -8/Materials | Scanalyzed Thermal Shield | -8/Materials | Scanalyzed Hpw. Shock Rifle | -8/Materials | Scanalyzed Coil Gun | -8/Materials | Scanalyzed Mni. Assault Cannon | -7/Factory | Scanalyzed Imp. Shield Generator | -7/Factory | Scanalyzed Weapon Cycler | -7/Factory | Scanalyzed Imp. Datajack | -7/Factory | Scanalyzed Magnetic Acceleration Cannon | -7/Factory | Hacked Robot Schematics ------------------ M-14 Sweeper | -7/Factory | Hacked S-27 Virus | -5/Factory | Hacked Fabricated ------------ S-27 Virus | x4 | -7/Factory | Preloaded Energy Filter | x2 | -7/Factory | Preloaded K-01 Serf | x1 | -5/Factory | Preloaded Alien Tech Used ----------------- None Achievements -------------- Error 47 Challenges ------------ None Game ------ Seed KineticMiniRefractor Manual? 0 Play Time 07:06:32 Cumulative 283.3 hours Start 2022.04.10 @ 20:57:39 End 2022.04.11 @ 20:05:26 Sessions 3 Manual Loads 0 Difficulty Rogue Special Mode None Game No. 233 Rogue 233 Adventurer 0 Explorer 0 Win Type - Total 0 Types 0/0/0/0/0/0/0/0/0 Lore% 52 Gallery% 58 Achievement% 42 Wizard Run 0 Options --------- ASCII 0 Keyboard 0 Movement Mouse Keybinds 0 Fullscreen 1 Font 16/SmallcapsGlow Map View 75x55 Tactical HUD 1 Map Filters NONE Filters NONE Steam 1 RUN: 155ed79f-b8cf-4193-851e-2559f3b3aa63